Cogmind - Beta 13 X1 @@@ ROGUE MODE // 2023.07.12 @ 20:53:38 Player: WayneKnight Result: Destroyed by D-53 Grenadier with Mini Grenade Launcher Performance ------------- Evolutions (1) 500 Regions Visited (4) 800 Robots Destroyed (22) 110 Value Destroyed (561) 561 Prototype IDs (0) 0 Alien Tech Used (0) 0 Bonus (31) 31 TOTAL SCORE: 2002 Bonus ------- Follower Combat Kills 60 Friendly Fire -29 Cogmind --------- Core Integrity 0/400 Matter 65/300 Energy 97/100 System Corruption 0% Temperature Cool (0) Movement Treading (160) Location -9/Mines Parts ------- > --- POWER (1) -------- (None) > --- PROPULSION (2) --- Light Treads Light Treads > --- UTILITY (4) ------ Large Storage Unit Improved Targeting Computer Improved Targeting Computer > --- WEAPON (2) ------- Assault Rifle > --- INVENTORY (15) --- Improved Ion Engine Wheel Shock Rifle Beam Rifle Assault Rifle Shotgun Light Cannon Grenade Launcher Missile Launcher Improved Datajack Peak State ------------ > --- POWER ------------ Deuterium Engine > --- PROPULSION ------- Light Treads Wheel > --- UTILITY ---------- Large Storage Unit Improved Terrain Scanner Light Armor Plating Light Armor Plating > --- WEAPON ----------- Beam Rifle Autogun > --- INVENTORY -------- Improved Ion Engine Light Treads Light Treads Light Treads Light Treads Shock Rifle Ion Cannon Assault Rifle Light Assault Rifle Shotgun Light Cannon Grenade Launcher Improved Grenade Launcher Missile Launcher Improved Datajack [Rating: 17] Favorites ----------- Power Deuterium Engine Engine Deuterium Engine Propulsion Light Treads Treads Light Treads Leg Aluminum Leg Wheel Wheel Utility Large Storage Unit Device Improved Terrain Scanner Storage Large Storage Unit Processor Improved Targeting Computer Protection Light Armor Plating Weapon Assault Rifle Energy Gun Small Laser Energy Cannon Ion Cannon Ballistic Gun Assault Rifle Ballistic Cannon Light Cannon Launcher Grenade Launcher Build | -11 -10 -10 -9 -9 ------- Run | Jun Mat Min Mat Min Slots Evolved 2 | . . . 2 . Power . | . . . . . Propulsion . | . . . . . Utility 2 | . . . 2 . Weapon . | . . . . . Parts Attached 41 | 3 14 6 10 8 Power 2 | . 1 1 . . Engine 2 | . 1 1 . . Core . | . . . . . Reactor . | . . . . . Propulsion 17 | 2 7 1 3 4 Treads 12 | 1 4 1 2 4 Leg . | . . . . . Wheel 5 | 1 3 . 1 . Hover . | . . . . . Flight . | . . . . . Utility 10 | 1 2 1 5 1 Device 2 | 1 . . 1 . Storage 3 | . 2 . 1 . Processor 2 | . . . 2 . Hackware . | . . . . . Protection 3 | . . 1 1 1 Artifact . | . . . . . Weapon 12 | . 4 3 2 3 Energy Gun 3 | . 2 1 . . Energy Cannon 1 | . . 1 . . Ballistic Gun 6 | . 1 1 2 2 Ballistic Cannon 1 | . 1 . . . Launcher 1 | . . . . 1 Special Weapon . | . . . . . Impact Weapon . | . . . . . Slashing Weapon . | . . . . . Piercing Weapon . | . . . . . Special Melee Weapon . | . . . . . Unidentified Prototypes . | . . . . . Parts Lost 10 | . 2 . . 8 Power 2 | . 1 . . 1 Propulsion 3 | . . . . 3 Utility 2 | . . . . 2 Weapon 3 | . 1 . . 2 Highest Loss Streak 7 | . 2 . . 7 To Critical Strikes . | . . . . . Average Slot Usage (%) 99 | . 99 100 100 88 Engine 12 | . 14 14 11 11 Treads 16 | . 17 14 17 18 Wheel 8 | . 10 14 4 . Device 6 | . 14 2 3 . Storage 12 | . 14 14 11 11 Processor 7 | . . . 15 22 Protection 9 | . . 11 13 4 Energy Gun 10 | . 26 10 1 . Ballistic Gun 13 | . . 14 20 17 Naked Turns . | . . . . . Heaviest Build 47 | 12 47 37 41 37 Greatest Support 43 | 20 40 10 40 43 Greatest Overweight (x) 4 | 1 4 3 4 3 Average Overweight (x) 2 | . 1 2 2 . Largest Inventory Capacity 20 | 8 20 15 15 15 Average Capacity 14 | 8 14 15 15 15 Most Carried 15 | 6 9 15 15 15 Average Carried 12 | 6 6 13 14 13 Final Capacity 15 | 8 15 15 15 15 Final Carried 15 | 6 7 15 15 10 Class Distribution -------------------- 100% | Mutant Dominant Class ---------------- Mutant | -10/Materials Mutant | -10/Mines Mutant | -9/Materials Mutant | -9/Mines Resources | -11 -10 -10 -9 -9 ----------- Run | Jun Mat Min Mat Min Matter Collected 684 | 230 100 105 247 2 Remotely . | . . . . . Salvage Created 897 | 102 329 60 312 94 Parts 49 | 3 18 1 27 . Haulers Intercepted . | . . . . . Recyclers Shooed 1 | . 1 . . . Parts Field Recycled . | . . . . . Retrieved Matter . | . . . . . Parts Self-Destructed . | . . . . . Prevented . | . . . . . Kills | -11 -10 -10 -9 -9 ------- Run | Jun Mat Min Mat Min Combat Hostiles Destroyed 33 | . 6 1 9 17 Guns 17 | . 5 . 9 3 Cannons 1 | . . 1 . . AOE 14 | . . . . 14 Classes Destroyed 9 | 2 4 1 1 1 Worker 1 | . 1 . . . Tunneler 1 | 1 . . . . Recycler 1 | 1 . . . . Watcher 3 | . 1 . 2 . Swarmer 4 | . . . 4 . Grunt 9 | . 5 . 4 . Sentry 2 | . . 1 1 . Subdweller 1 | . 1 . . . Assembled 17 | . . . . 17 Best Kill Streak 17 | 2 2 1 4 17 Combat Bots Only 17 | . 2 1 4 17 Max Kills in Single Turn 5 | 1 2 1 1 5 Gunslinging . | . . . . . Exploded 5 | . . . . 5 Melee . | . . . . . Uniques/NPCs Destroyed . | . . . . . Combat | -11 -10 -10 -9 -9 -------- Run | Jun Mat Min Mat Min Damage Taken 2076 | . 318 63 278 1417 Core 414 | . 12 . 82 320 Absorbed by Shields . | . . . . . Regen/Repaired (Parts) 50 | . 50 . . . Core Remaining (%) 97 | 100 . 95 . . Volleys Fired 87 | 5 30 5 29 18 Largest 2 | 2 2 2 2 2 Hottest 80 | 80 80 80 76 53 Shots Fired 170 | 9 60 10 58 33 Gun 163 | 9 60 8 58 28 Cannon 2 | . . 2 . . Launcher 5 | . . . . 5 Special . | . . . . . Kinetic 89 | . . 5 56 28 Thermal 48 | 4 37 5 2 . Explosive 5 | . . . . 5 Electromagnetic 28 | 5 23 . . . Robot Hit Streak 18 | 6 6 6 10 18 Robot Miss Streak 4 | 3 4 1 3 1 Penetration Max . | . . . . . Secondary Targets . | . . . . . Shots Hit Robots 111 | 6 37 7 37 24 Core Hits 67 | 3 15 1 16 32 Critical Kills 1 | . . . 1 . Critical Parts Destroyed . | . . . . . Critical Strikes 2 | . . . 2 . Destroy 2 | . . . 2 . Melee Attacks . | . . . . . Impact . | . . . . . Slashing . | . . . . . Piercing . | . . . . . Sneak Attacks . | . . . . . Combat Hostiles . | . . . . . Follow-up Attacks . | . . . . . Damage Inflicted 2187 | 73 452 140 499 1023 Guns 1416 | 73 452 113 499 279 Cannons 23 | . . 23 . . Explosions 744 | . . . . 744 Melee . | . . . . . Ramming 4 | . . 4 . . Kinetic 834 | . . 70 485 279 Thermal 386 | 33 273 66 14 . Explosive 744 | . . . . 744 Electromagnetic 219 | 40 179 . . . Impact . | . . . . . Slashing . | . . . . . Piercing . | . . . . . Highest Corruption . | . . . . . Average Corruption . | . . . . . Corruption Purged . | . . . . . Corruption Blocked . | . . . . . Overload Shots . | . . . . . Overflow Damage . | . . . . . Projectiles . | . . . . . Explosions . | . . . . . Melee . | . . . . . Knockbacks . | . . . . . Impact . | . . . . . Kinetic . | . . . . . Secondary . | . . . . . Self-Inflicted Damage 95 | . . 2 . 93 Shots 3 | . . . . 3 Rammed 4 | . . 3 1 . Targets Rammed 4 | . . 3 1 . Kicked . | . . . . . Crushed . | . . . . . Highest Temperature 210 | 54 210 72 38 74 Average Temperature 42 | 26 69 31 6 28 Received Heat Transfer 338 | . 156 . 42 140 Siege Activations . | . . . . . Robots Corrupted . | . . . . . Combat Hostiles . | . . . . . Parts Fried . | . . . . . Impact Corruptions . | . . . . . Robots Melted 1 | . 1 . . . Combat Hostiles 1 | . 1 . . . Parts Melted 7 | . 2 4 1 . Heat Transferred 885 | 75 625 148 37 . Parts Sabotaged . | . . . . . Parts Stolen . | . . . . . Parts Stripped . | . . . . . Power Chain Reactions . | . . . . . Missiles Intercepted . | . . . . . Alert | -11 -10 -10 -9 -9 ------- Run | Jun Mat Min Mat Min Peak Influence 229 | 10 148 56 229 44 Initial 12 | . 6 . . 12 Average 50 | 6 50 8 77 23 Maximum Alert Level 1 | . . . 1 . Low Security (%) 95 | 100 100 100 89 100 Level 1 4 | . . . 10 . Level 2 . | . . . . . Level 3 . | . . . . . Level 4 . | . . . . . Level 5 . | . . . . . High Security . | . . . . . Max Security . | . . . . . Squads Dispatched 5 | . 1 1 3 . Investigation 2 | . . 1 1 . Extermination . | . . . . . Reinforcement 3 | . 1 . 2 . Assault . | . . . . . Garrison . | . . . . . Intercept . | . . . . . Searches Triggered . | . . . . . Construction Impeded . | . . . . . Haulers Reinforced . | . . . . . Active Scanning Responses . | . . . . . Cargo Convoy Interrupts . | . . . . . Stealth | -11 -10 -10 -9 -9 --------- Run | Jun Mat Min Mat Min Distress Signals 2 | . . . 2 . Communications Jammed . | . . . . . Distress Signals . | . . . . . Times Spotted 54 | . 10 3 14 27 Peak Tracking Total 20 | . 2 2 4 20 Tactical Retreats 4 | . 1 . 1 2 Traps | -11 -10 -10 -9 -9 ------- Run | Jun Mat Min Mat Min Traps Triggered 3 | . . 1 2 . Indirectly . | . . . . . Trap Hack Attempts . | . . . . . Triggered . | . . . . . Disarmed . | . . . . . Reprogrammed . | . . . . . Reused . | . . . . . Traps Extracted . | . . . . . Installed . | . . . . . Triggered . | . . . . . Machines | -11 -10 -10 -9 -9 ---------- Run | Jun Mat Min Mat Min Machines Disabled 1 | . 1 . . . Max in Single Turn 1 | . 1 . . . Machines Repaired . | . . . . . Machines Sabotaged . | . . . . . Overloaded Fab Kills . | . . . . . Hacking | -11 -10 -10 -9 -9 --------- Run | Jun Mat Min Mat Min Machines Accessed 6 | . 4 2 . . Terminals 2 | . 2 . . . Fabricators . | . . . . . Repair Stations 1 | . 1 . . . Recycling Units 1 | . 1 . . . Scanalyzers . | . . . . . Garrison Access . | . . . . . Total Hacks 13 | . 11 2 . . Successful 8 | . 6 2 . . Failed 5 | . 5 . . . Catastrophic . | . . . . . Database Lockouts . | . . . . . Manual 7 | . 7 . . . Terminals 7 | . 7 . . . Fabricators . | . . . . . Repair Stations 3 | . 3 . . . Recycling Units 1 | . 1 . . . Scanalyzers . | . . . . . Garrison Access . | . . . . . Terminal Hacks 3 | . 1 2 . . Robot Analysis 1 | . 1 . . . Open Door 2 | . . 2 . . Fabricator Hacks . | . . . . . Repair Station Hacks 2 | . 2 . . . Scan Component 1 | . 1 . . . Repair 1 | . 1 . . . Recycling Unit Hacks 1 | . 1 . . . Report Inventory 1 | . 1 . . . Scanalyzer . | . . . . . Garrison Access Hacks . | . . . . . Unauthorized Hacks 2 | . 2 . . . Terminals 2 | . 2 . . . Botnet 2 | . 2 . . . Fabricators . | . . . . . Repair Stations . | . . . . . Recycling Units . | . . . . . Scanalyzers . | . . . . . Garrison Access . | . . . . . Data Cores Recovered . | . . . . . Used . | . . . . . Hacking Detections 3 | . 3 . . . Full Trace Events . | . . . . . Feedback Events . | . . . . . Feedback Blocked . | . . . . . Robot Schematics Acquired . | . . . . . Robots Built . | . . . . . Authchips . | . . . . . Time . | . . . . . Total Robot Build Rating . | . . . . . Part Schematics Acquired . | . . . . . Parts Built . | . . . . . Authchips . | . . . . . Time . | . . . . . Total Part Build Rating . | . . . . . Parts Repaired 1 | . 1 . . . Time 26 | . 26 . . . Parts Recycled . | . . . . . Recycled Matter . | . . . . . Retrieved Matter . | . . . . . Retrieved Components . | . . . . . Parts Scanalyzed . | . . . . . Part Schematics Acquired . | . . . . . Parts Damaged . | . . . . . Bothacking | -11 -10 -10 -9 -9 ------------ Run | Jun Mat Min Mat Min Used RIF Installer . | . . . . . Robots Hacked . | . . . . . Non-combat . | . . . . . Combat . | . . . . . Robot Hacks Applied . | . . . . . Relay Couplers Released . | . . . . . Fabnet Peak Effective % . | . . . . . Robots Rewired . | . . . . . Allies Hacked . | . . . . . Hacks Repelled . | . . . . . Allies | -11 -10 -10 -9 -9 -------- Run | Jun Mat Min Mat Min Total Allies 3 | . . 3 . . Largest Group 3 | . . 3 2 . Highest-Rated Group 40 | . . 40 32 . Highest-Rated Ally 16 | . . 16 16 . Total Orders . | . . . . . Ally Attacks 20 | . . 15 5 . Total Damage 183 | . . 139 44 . Kills 2 | . . 2 . . Allies Corrupted . | . . . . . Allies Melted . | . . . . . Intel | -11 -10 -10 -9 -9 ------- Run | Jun Mat Min Mat Min Robot Analysis Total 1 | . 1 . . . Derelict Logs Recovered 2 | . . 2 . . Drone Launches . | . . . . . Drone Recoveries . | . . . . . Exploration | -11 -10 -10 -9 -9 ------------- Run | Jun Mat Min Mat Min Turns Passed 3707 | 61 987 919 1665 75 Spaces Moved 1540 | 43 439 654 394 10 Core . | . . . . . Treads 124 | . 32 . 83 9 Legs 2 | 2 . . . . Wheels 1414 | 41 407 654 311 1 Hover . | . . . . . Flight . | . . . . . Fastest Speed 95 | 95 95 110 125 125 Average Speed 123 | 96 111 122 140 172 Slowest Speed 240 | 120 160 125 240 240 Overloaded Moves . | . . . . . Propulsion Burnouts . | . . . . . Robots Hopped . | . . . . . Cave-ins Triggered . | . . . . . Exploration Rate (%) 37 | 3 57 94 24 11 Regions Visited 4 Branch Regions 2 Pre-discovered Areas 1 | . . 1 . . Known Exits Taken . | . . . . . Unknown Exits Taken 4 | 1 1 1 1 . Scrap Searched 3 | . . 3 . . Spaces Dug . | . . . . . Terrain Destroyed 39 | . . . . 39 Melee . | . . . . . Projectile . | . . . . . AOE 39 | . . . . 39 Terrain Rammed . | . . . . . Walls Destroyed . | . . . . . Machines Disabled . | . . . . . Actions | -11 -10 -10 -9 -9 --------- Run | Jun Mat Min Mat Min Total 3178 | 52 874 761 1455 36 Wait 1471 | 2 378 82 1009 . Move 1536 | 42 438 653 393 10 Hop . | . . . . . Pick Up 20 | . 8 7 5 . Fast Attach 6 | 1 1 2 2 . Attach 9 | . 2 . 2 5 Detach 2 | . . 2 . . Swap 26 | 2 11 4 6 3 Drop 17 | . 6 3 8 . Fire 87 | 5 30 5 29 18 Melee . | . . . . . Ram 3 | . . 3 . . Kick . | . . . . . Crush 1 | . . . 1 . Escape Stasis . | . . . . . Rewire . | . . . . . Trap . | . . . . . Miscellaneous . | . . . . . Route ------- -11/Junkyard -10/Materials (discovered 3 exits: [*Mat] / *Min / [*Sub]) -10/Mines (discovered 3 exits: [*Mat x2] / [*Sub]) -9/Materials (discovered 2 exits: [*Min] / Sto) -9/Mines History --------- Turn | Location | Event 1 | -11/Junkyard | Discovered new exit (range 3) 62 | -11/Junkyard | Entered Materials 102 | -10/Materials | Discovered new exit (range 13) 308 | -10/Materials | Build established: Mutant 500 | -10/Materials | Derelicts attacked the area 893 | -10/Materials | Repaired Sml. Laser 957 | -10/Materials | Discovered new exit (range 9) 970 | -10/Materials | Discovered new exit (range 15) 1049 | -10/Materials | Entered Mines 1112 | -10/Mines | Met a Derelict who couldn't figure out how to use a Trap Extractor 1201 | -10/Mines | Learned location of Storage (-9) 1203 | -10/Mines | Joined a pair of Derelicts in attacking an 0b10 outpost 1279 | -10/Mines | Discovered new exit (range 9) 1284 | -10/Mines | Assisted by bots powering up and referring to "LRC-V3" 1378 | -10/Mines | Learned location of 1 exit from Materials 1414 | -10/Mines | Met a Derelict shopkeep closing up shop 1645 | -10/Mines | Discovered new exit (range 5) 1752 | -10/Mines | Discovered new exit (range 6) 1968 | -10/Mines | Entered Materials 1968 | -9/Materials | Accompanied by 2 allies 1968 | -9/Materials | Evolved 2 slots: Utility x2 1969 | -9/Materials | Identified exit to Storage 2963 | -9/Materials | Discovered new exit (range 16) 3633 | -9/Materials | Entered Mines 3634 | -9/Mines | Assembled infested the area 3700 | -9/Mines | Core integrity fell below 50% 3703 | -9/Mines | Core integrity fell below 20% 3708 | -9/Mines | Destroyed by D-53 Grenadier with Mini Grenade Launcher Last Messages --------------- 03690_ Assault Rifle destroyed. 03691_ U-05 Engineer lays Concrete. 03693_ Imp. Treads destroyed. 03693_ C-30 ARC bursts open, deploying its payload. 03693_ D-53 Grenadier unfolds itself. 03693_ as-18021 destroyed. 03694_ U-05 Engineer lays Concrete. 03695_ The unstable cave ceiling collapses. 03695_ U-05 Engineer lays Concrete. 03696_ U-05 Engineer builds a Wall. 03698_ Autogun destroyed. 03699_ Lgt. Treads destroyed. 03699_ U-05 Engineer lays Concrete. 03700_ Deuterium Engine destroyed. 03701_ U-05 Engineer lays Concrete. 03703_ The unstable cave ceiling collapses. 03703_ U-05 Engineer lays Concrete. 03705_ U-05 Engineer builds a Wall. 03705_ D-53 Grenadier destroyed. 03706_ as-69441 destroyed. Map ----- +----------------------------------------------------+ | ????????????????????????????????????????? | | ????????????????????????????????????????? | | ????????????????????????????????????????? | | ????????????????????????????????????????? | | ????????????????????????????????????????? | | ?????????????????????#??????????????????? | | ???????????????????? ##????????????????? | | ???????????????????? ??????????????? | | ??????????????????? ??????????????? | | ????????????????? ? ##?????????????? | | ????????????????? ??????????????? | | ????????????????# ??????????????? | | ???????????????? #??????????????? | | ???????????????? #???????????????? | | ??????????#####? #????????????????? | | ?????????### ## % #????????????????? | | ?????????# # ##?????????????????? | | ????????## ## < #?????????????????? | | ???????## u #?????????????????? | | ???????# ###?????????????????? | | ????????# ##???????????????????? | | ???????## ######???????????????? | | ???????# ??????????????? | | ?????????# ###????????????????? | | ?????????# #??????????????????? | | ?????????## @ #??????????????????? | | ??????????# d ????????????? | | ??????????## ????????? | | ???????????## ?????????? | | ????????????## ## ?????????? | | ?????????????# #####?? ??????????? | | ?????????????# #??????? ??????????? | | ?????????????# ???????? ### ??????????? | | ?????????????# ?????????##?????????????? | | ?????????????###????????????????????????? | | ????????????????????????????????????????? | | ????????????????????????????????????????? | | ????????????????????????????????????????? | | ????????????????????????????????????????? | | ????????????????????????????????????????? | | | | | | | | | | | | | | | | | | | | | +----------------------------------------------------+ Best States ------------- Heat Dissipation 28 Energy Generation 14 Energy Capacity 275 Matter Stores 300 Matter Capacity 300 Sight Range 16 Terrain Scan Range 16 Terrain Scan Density 10 Armor Coverage 300 Evasion (%) 41 Targeting Accuracy 12 Recoil Reduction 2 Item Schematics ----------------- None Robot Schematics ------------------ None Fabricated ------------ Nothing Alien Tech Used ----------------- None Achievements -------------- None Challenges ------------ None Game ------ Seed DeliveryTargetCore Manual? 0 Play Time 00:20:46 Cumulative 54.0 hours Start 2023.07.12 @ 20:19:02 End 2023.07.12 @ 20:53:38 Sessions 1 Manual Loads 0 Difficulty Rogue Special Mode None Game No. 50 Rogue 50 Adventurer 0 Explorer 0 Win Type - Total 1 Types 0/0/1/0/0/0/0/0/0 Lore% 33 Gallery% 36 Achievement% 52 Wizard Run 0 Options --------- ASCII 1 Keyboard 1 Movement Arrows Keybinds 0 Fullscreen 2 Font 24/Proggy Map View 76x50 Tactical HUD 1 Map Filters NONE Filters NONE Steam 1 RUN: 12b2b08b-ae7d-4289-86f8-893e1ea6aca7